fUSD/lending_fUSD_20250617
["ID","MTS","AMOUNT","RATE_DAILY","PERIOD"]
[366337878,1750197032652,-159.05,0.00015973,2]
[366337879,1750197032661,-150.0,0.00016077,2]
[366337880,1750197032671,-1000.0,0.00016078,2]
[366337881,1750197032682,-150.0,0.000161,2]
[366337882,1750197032692,-150.0,0.000161,2]
[366337883,1750197032702,-300.0,0.000161,2]
[366337884,1750197032711,-1488.69600261,0.00016107,2]
[366337885,1750197032722,-341.6,0.0001611,2]
[366337886,1750197032732,-1000.0,0.00016118,2]
[366337887,1750197032742,-150.0,0.00016143,2]
[366337888,1750197032752,-1000.0,0.00016164,2]
[366337889,1750197032762,-150.0,0.00016165,2]
[366337890,1750197032772,-150.0,0.00016165,2]
[366337891,1750197032782,-154.0,0.00016201,2]
[366337892,1750197032792,-154.0,0.00016201,2]
[366337893,1750197032802,-154.0,0.00016201,2]
[366337894,1750197032811,-154.0,0.00016201,2]
[366337895,1750197032822,-150.0,0.00016211,2]
[366337896,1750197032831,-1680.0,0.00016242,2]
[366337897,1750197032841,-1517.76557482,0.00016273,2]
[366337898,1750197032851,-150.0,0.00016279,2]
[366337899,1750197032861,-1488.69600261,0.00016279,2]
[366337900,1750197032871,-150.0,0.00016288,2]
[366337901,1750197032881,-574.93409453,0.00016291,2]
[366337902,1750197032891,-14485.79784543,0.00016296,2]
[366337903,1750197032901,-150.0,0.00016305,2]
[366337904,1750197032911,-250.0,0.00016315,2]
[366337905,1750197032921,-300.0,0.00016315,2]
[366337906,1750197032931,-14485.79784543,0.00016325,2]
[366337907,1750197032940,-32260.22774717,0.00016328,2]
[366337908,1750197032950,-32260.22774717,0.00016336,2]
[366337909,1750197032960,-12286.44987264,0.00016336,2]
[366337910,1750197033021,150.0,0.00013885,2]
[366337911,1750197033295,150.0,0.00013684,2]
[366337912,1750197033389,150.0,0.00013624,2]
[366337913,1750197033592,150.0,0.00013789,2]
[366337914,1750197033954,150.0,0.00013447,2]
[366337923,1750197037470,-150.0,0.00014112,2]
[366337924,1750197037480,-150.0,0.00014199,2]
[366337925,1750197037490,-150.0,0.00014389,2]
[366337926,1750197037500,-116.0,0.00014406,2]
[366337927,1750197037512,-34.0,0.00014406,2]
[366337928,1750197037520,-150.0,0.00014483,2]
[366337929,1750197037529,-150.0,0.0001453,2]
[366337930,1750197037537,-150.0,0.0001459,2]
[366337931,1750197037546,-150.0,0.00014601,2]
[366337932,1750197037554,-150.0,0.0001485,2]
[366337933,1750197037563,-150.0,0.0001486,2]
[366337934,1750197037573,-150.0,0.00014908,2]
[366337935,1750197037583,-150.0,0.00015129,2]
[366337936,1750197037592,-150.0,0.00015396,2]
[366337937,1750197037602,-150.0,0.00015416,2]
[366337938,1750197037612,-150.0,0.00015628,2]
[366337939,1750197037622,-150.0,0.00015751,2]
[366337940,1750197037632,-150.0,0.00016063,2]
[366337941,1750197037642,-150.0,0.00016323,2]
[366337942,1750197037652,-2347.50952533,0.00016336,2]
[366337943,1750197037665,-17626.2683492,0.00016336,2]
[366337944,1750197037675,-264.05,0.00016338,2]
[366337945,1750197037685,-183.92174682,0.00016338,2]
[366337946,1750197037695,-361.58876418,0.00016338,2]
[366337947,1750197037704,-281.66155032,0.00016338,2]
[366337948,1750197037714,-154.49044647,0.00016338,2]
[366337949,1750197037724,-8476.77888632,0.00016338,2]
[366337950,1750197037733,-290.06821709,0.00016338,2]
[366337951,1750197037743,-195.5976,0.00016338,2]
[366337952,1750197037753,-1203.25866623,0.00016338,2]
[366337953,1750197037763,-14485.79784543,0.00016342,2]
[366337954,1750197037772,-150.0,0.00016344,2]
[366337955,1750197037782,-1517.76557482,0.00016345,2]
[366337956,1750197037792,-574.93409453,0.00016357,2]
[366337957,1750197037802,-150.0,0.00016362,2]
[366337958,1750197037812,-507.56514778,0.00016364,2]
[366337959,1750197037824,-1010.20042704,0.00016364,2]
[366337960,1750197037835,-1203.25866623,0.00016365,2]
[366337961,1750197037845,-300.0,0.00016367,2]
[366337962,1750197037855,-2104.009,0.00016378,2]
[366337963,1750197037865,-150.0,0.00016379,2]
[366337964,1750197037875,-154.49044645,0.00016385,2]
[366337965,1750197037885,-574.93409453,0.00016385,2]
[366337967,1750197037895,-1203.25866623,0.00016391,2]
[366337969,1750197037905,-8108.7084116,0.00016393,2]
[366337970,1750197037919,-368.07047464,0.00016393,2]
[366337971,1750197037929,-139.24872905,0.00016413,2]
[366337974,1750197037971,150.0,0.00013713,2]
[366337979,1750197038004,150.0,0.00013871,2]
[366337987,1750197038080,150.0,0.00013557,2]
[366337992,1750197038111,-150.0,0.00014031,2]
[366337994,1750197038121,-150.0,0.00016014,2]
[366337996,1750197038131,-150.0,0.00016235,2]
[366337998,1750197038141,-10.75127095,0.00016413,2]
[366338000,1750197038151,-189.09,0.00016428,3]
[366338002,1750197038161,-515.58,0.00016428,2]
[366338004,1750197038171,-515.58,0.00016428,2]
[366338006,1750197038181,-515.58,0.00016428,2]
[366338008,1750197038191,-515.58,0.00016428,2]
[366338010,1750197038201,-150.0,0.0001643,2]
[366338011,1750197038211,-154.49044645,0.00016432,2]
[366338013,1750197038220,-550.97786425,0.00016437,2]
[366338015,1750197038230,-500.0,0.00016437,2]
[366338017,1750197038240,-531.7058825,0.00016437,2]
[366338019,1750197038250,-178.15,0.00016437,2]
[366338021,1750197038261,-833.87704394,0.00016438,2]
[366338023,1750197038270,-286.17436628,0.00016438,2]
[366338025,1750197038280,-103793.57946834,0.00016438,2]
[366338027,1750197038289,-925.0,0.00016438,2]
[366338029,1750197038299,-151.0,0.00016438,2]
[366338031,1750197038309,-151.0,0.00016438,2]
[366338033,1750197038319,-151.0,0.00016438,2]
[366338035,1750197038332,-151.0,0.00016438,2]
[366338037,1750197038342,-151.0,0.00016438,2]
[366338039,1750197038351,-151.0,0.00016438,2]
[366338041,1750197038360,-151.0,0.00016438,2]
[366338043,1750197038371,-151.0,0.00016438,2]
[366338045,1750197038381,-151.0,0.00016438,2]
[366338047,1750197038390,-151.0,0.00016438,2]
[366338049,1750197038402,-151.0,0.00016438,2]
[366338051,1750197038411,-151.0,0.00016438,2]
[366338053,1750197038421,-151.0,0.00016438,2]
[366338096,1750197038826,-151.0,0.00016438,2]
[366338098,1750197038837,-151.0,0.00016438,2]
[366338100,1750197038846,-151.0,0.00016438,2]
[366338102,1750197038856,-151.0,0.00016438,2]
[366338104,1750197038866,-151.0,0.00016438,2]
[366338106,1750197038876,-151.0,0.00016438,2]
[366338108,1750197038885,-151.0,0.00016438,2]
[366338110,1750197038895,-151.0,0.00016438,2]
[366338112,1750197038905,-151.0,0.00016438,2]
[366338114,1750197038914,-151.0,0.00016438,2]
[366338116,1750197038924,-151.0,0.00016438,2]
[366338118,1750197038934,-156.201423,0.00016438,2]
[366338120,1750197038944,-154.510995,0.00016438,2]
[366338121,1750197038953,-154.510995,0.00016438,2]
[366338123,1750197038963,-154.510995,0.00016438,2]
[366338125,1750197038973,-151.0,0.00016438,2]
[366338127,1750197038982,-490.0,0.00016438,2]
[366338129,1750197038992,-151.0,0.00016438,2]
[366338131,1750197039003,-151.0,0.00016438,2]
[366338133,1750197039014,-151.0,0.00016438,2]
[366338135,1750197039024,-161.91514958,0.00016438,2]
[366338137,1750197039034,-460.0,0.00016438,2]
[366338139,1750197039044,-490.0,0.00016438,2]
[366338141,1750197039054,-189.05127628,0.00016438,2]
[366338143,1750197039064,-151.0,0.00016438,2]
[366338145,1750197039074,-151.0,0.00016438,2]
[366338147,1750197039084,-151.0,0.00016438,2]
[366338149,1750197039093,-151.0,0.00016438,2]
[366338151,1750197039103,-151.0,0.00016438,2]
[366338153,1750197039113,-151.0,0.00016438,2]
[366338155,1750197039123,-490.0,0.00016438,2]
[366338157,1750197039134,-460.0,0.00016438,2]
[366338159,1750197039144,-490.0,0.00016438,2]
[366338161,1750197039154,-151.0,0.00016438,2]
[366338163,1750197039163,-151.0,0.00016438,2]
[366338165,1750197039173,-151.0,0.00016438,2]
[366338167,1750197039183,-183.63030901,0.00016438,2]
[366338169,1750197039192,-151.0,0.00016438,2]
[366338171,1750197039202,-151.0,0.00016438,2]
[366338173,1750197039212,-151.0,0.00016438,2]
[366338175,1750197039221,-290.0,0.00016438,2]
[366338177,1750197039231,-490.0,0.00016438,2]
[366338179,1750197039241,-260.37451258,0.00016438,2]
[366338181,1750197039251,-151.0,0.00016438,2]
[366338183,1750197039261,-151.0,0.00016438,2]
[366338185,1750197039271,-151.0,0.00016438,2]
[366338187,1750197039281,-151.0,0.00016438,2]
[366338189,1750197039291,-151.0,0.00016438,2]
[366338192,1750197039301,-229.060344,0.00016438,2]
[366338194,1750197039311,-490.0,0.00016438,2]
[366338196,1750197039322,-490.0,0.00016438,2]
[366338197,1750197039333,-490.0,0.00016438,2]
[366338198,1750197039343,-516.78201845,0.00016438,2]
[366338199,1750197039352,-460.0,0.00016438,2]
[366338200,1750197039363,-490.0,0.00016438,2]
[366338202,1750197039372,-438.890897,0.00016438,2]
[366338204,1750197039381,-438.890897,0.00016438,2]
[366338205,1750197039390,-438.890897,0.00016438,2]
[366338206,1750197039401,-490.0,0.00016438,2]
[366338207,1750197039410,-438.890897,0.00016438,2]
[366338208,1750197039419,-490.0,0.00016438,2]
[366338209,1750197039429,-438.890897,0.00016438,2]
[366338210,1750197039438,-438.890897,0.00016438,2]
[366338212,1750197039447,-662.77,0.00016438,2]
[366338213,1750197039456,-490.0,0.00016438,2]
[366338215,1750197039466,-460.0,0.00016438,2]
[366338217,1750197039476,-490.0,0.00016438,2]
[366338220,1750197039486,-490.0,0.00016438,2]
[366338222,1750197039496,-490.0,0.00016438,2]
[366338224,1750197039506,-490.0,0.00016438,2]
[366338226,1750197039515,-490.0,0.00016438,2]
[366338228,1750197039525,-490.0,0.00016438,2]
[366338230,1750197039535,-490.0,0.00016438,2]
[366338232,1750197039545,-490.0,0.00016438,2]
[366338234,1750197039555,-151.0,0.00016438,2]
[366338237,1750197039565,-578.93,0.00016438,2]
[366338239,1750197039575,-490.0,0.00016438,2]
[366338241,1750197039585,-293.776821,0.00016438,2]
[366338243,1750197039594,-490.0,0.00016438,2]
[366338245,1750197039604,-490.0,0.00016438,2]
[366338247,1750197039613,-687.84,0.00016438,2]
[366338249,1750197039623,-490.0,0.00016438,2]
[366338251,1750197039633,-490.0,0.00016438,2]
[366338253,1750197039643,-490.0,0.00016438,2]
[366338255,1750197039652,-490.0,0.00016438,2]
[366338257,1750197039664,-490.0,0.00016438,2]
[366338259,1750197039674,-490.0,0.00016438,2]
[366338261,1750197039683,-490.0,0.00016438,2]
[366338263,1750197039693,-1000.0,0.00016438,2]
[366338265,1750197039703,-967.49,0.00016438,2]
[366338267,1750197039712,-490.0,0.00016438,2]
[366338269,1750197039723,-490.0,0.00016438,2]
[366338271,1750197039733,-490.0,0.00016438,2]
[366338273,1750197039742,-470.19,0.00016438,2]
[366338275,1750197039752,-490.0,0.00016438,2]
[366338277,1750197039762,-490.0,0.00016438,2]
[366338279,1750197039772,-490.0,0.00016438,2]
[366338282,1750197039784,-490.0,0.00016438,2]
[366338283,1750197039797,-151.0,0.00016438,2]
[366338286,1750197039806,-151.0,0.00016438,2]
[366338287,1750197039815,-490.0,0.00016438,2]
[366338290,1750197039826,-490.0,0.00016438,2]
[366338292,1750197039836,-151.0,0.00016438,2]
[366338294,1750197039846,-667.31,0.00016438,2]
[366338296,1750197039856,-460.0,0.00016438,2]
[366338298,1750197039866,-151.0,0.00016438,2]
[366338300,1750197039875,-490.0,0.00016438,2]
[366338302,1750197039885,-490.0,0.00016438,2]
[366338304,1750197039895,-151.0,0.00016438,2]
[366338306,1750197039905,-490.0,0.00016438,2]
[366338308,1750197039914,-151.0,0.00016438,2]
[366338310,1750197039924,-490.0,0.00016438,2]
[366338312,1750197039933,-490.0,0.00016438,2]
[366338314,1750197039943,-490.0,0.00016438,2]
[366338316,1750197039953,-460.0,0.00016438,2]
[366338318,1750197039963,-500.0,0.00016438,2]
[366338319,1750197039973,-490.0,0.00016438,2]
[366338321,1750197039982,-500.75,0.00016438,2]
[366338324,1750197039992,-209.77,0.00016438,2]
[366338325,1750197040002,-490.0,0.00016438,2]
[366338328,1750197040011,-490.0,0.00016438,2]
[366338329,1750197040021,-490.0,0.00016438,2]
[366338331,1750197040030,-460.0,0.00016438,2]
[366338333,1750197040039,-490.0,0.00016438,2]
[366338336,1750197040049,-730.32,0.00016438,2]
[366338338,1750197040059,-161.11200803,0.00016438,2]
[366338339,1750197040069,-490.0,0.00016438,2]
[366338341,1750197040079,-490.0,0.00016438,2]
[366338344,1750197040088,-490.0,0.00016438,2]
[366338345,1750197040098,-490.0,0.00016438,2]
[366338348,1750197040108,-490.0,0.00016438,2]
[366338349,1750197040117,-490.0,0.00016438,2]
[366338352,1750197040128,-460.0,0.00016438,2]
[366338354,1750197040138,-151.0,0.00016438,2]
[366338356,1750197040147,-151.0,0.00016438,2]
[366338357,1750197040157,-151.0,0.00016438,2]
[366338359,1750197040166,-490.0,0.00016438,2]
[366338361,1750197040176,-647.38,0.00016438,2]
[366338364,1750197040185,-490.0,0.00016438,2]
[366338365,1750197040195,-490.0,0.00016438,2]
[366338368,1750197040204,-490.0,0.00016438,2]
[366338369,1750197040214,-490.0,0.00016438,2]
[366338372,1750197040223,-490.0,0.00016438,2]
[366338374,1750197040233,-490.0,0.00016438,2]
[366338375,1750197040242,-490.0,0.00016438,2]
[366338378,1750197040252,-490.0,0.00016438,2]
[366338380,1750197040261,-490.0,0.00016438,2]
[366338382,1750197040271,-490.0,0.00016438,2]
[366338384,1750197040280,-151.0,0.00016438,2]
[366338385,1750197040290,-490.0,0.00016438,2]
[366338387,1750197040299,-151.0,0.00016438,2]
[366338390,1750197040308,-490.0,0.00016438,2]
[366338392,1750197040318,-490.0,0.00016438,2]
[366338394,1750197040332,-490.0,0.00016438,2]
[366338396,1750197040341,-490.0,0.00016438,2]
[366338398,1750197040351,-490.0,0.00016438,2]
[366338399,1750197040360,-490.0,0.00016438,2]
[366338401,1750197040371,-490.0,0.00016438,2]
[366338403,1750197040380,-490.0,0.00016438,2]
[366338406,1750197040389,-490.0,0.00016438,2]
[366338408,1750197040400,-490.0,0.00016438,2]
[366338410,1750197040411,-490.0,0.00016438,2]
[366338412,1750197040421,-423.92075202,0.00016438,2]
[366338414,1750197040431,-490.0,0.00016438,2]
[366338416,1750197040441,-490.0,0.00016438,2]
[366338418,1750197040451,-387.147685,0.00016438,2]
[366338420,1750197040461,-490.0,0.00016438,2]
[366338422,1750197040471,-151.0,0.00016438,2]
[366338424,1750197040480,-151.0,0.00016438,2]
[366338426,1750197040490,-387.147685,0.00016438,2]
[366338428,1750197040499,-490.0,0.00016438,2]
[366338430,1750197040509,-387.147685,0.00016438,2]
[366338432,1750197040519,-674.42,0.00016438,2]
[366338434,1750197040528,-506.8,0.00016438,2]
[366338436,1750197040537,-387.147685,0.00016438,2]
[366338438,1750197040546,-387.147685,0.00016438,2]
[366338440,1750197040556,-387.147685,0.00016438,2]
[366338442,1750197040565,-490.0,0.00016438,2]
[366338444,1750197040574,-490.0,0.00016438,2]
[366338446,1750197040584,-764.38,0.00016438,2]
[366338448,1750197040594,-490.0,0.00016438,2]
[366338450,1750197040604,-490.0,0.00016438,2]
[366338452,1750197040613,-413.77099228,0.00016438,2]
[366338472,1750197040778,150.0,0.00013814,2]
[366338483,1750197040875,150.0,0.00013643,2]
[366338487,1750197040907,150.0,0.00013441,2]
[366338494,1750197040963,150.0,0.000136,2]
[366338526,1750197041265,-150.0,0.00014058,2]
[366338528,1750197041275,-150.0,0.00014097,2]
[366338530,1750197041284,-150.0,0.00014204,2]
[366338532,1750197041294,-150.0,0.00014421,2]
[366338534,1750197041304,-150.0,0.00014456,2]
[366338536,1750197041314,-150.0,0.00014476,2]
[366338538,1750197041325,-150.0,0.00014552,2]
[366338540,1750197041337,-150.0,0.00014644,2]
[366338541,1750197041347,-150.0,0.00015727,2]
[366338544,1750197041357,-150.0,0.00016104,2]
[366338545,1750197041367,-150.0,0.00016143,2]
[366338548,1750197041377,-150.0,0.00016323,2]
[366338549,1750197041387,-76.22900772,0.00016438,2]
[366338552,1750197041397,-541.85,0.00016438,2]
[366338553,1750197041408,-490.0,0.00016438,2]
[366338555,1750197041418,-151.0,0.00016438,2]
[366338558,1750197041428,-151.0,0.00016438,2]
[366338560,1750197041438,-460.0,0.00016438,2]
[366338562,1750197041448,-490.0,0.00016438,2]
[366338564,1750197041458,-490.0,0.00016438,2]
[366338565,1750197041467,-680.54,0.00016438,2]
[366338567,1750197041477,-490.0,0.00016438,2]
[366338569,1750197041487,-151.0,0.00016438,2]
[366338572,1750197041496,-151.0,0.00016438,2]
[366338574,1750197041506,-490.0,0.00016438,2]
[366338575,1750197041516,-490.0,0.00016438,2]
[366338577,1750197041525,-490.0,0.00016438,2]
[366338580,1750197041535,-490.0,0.00016438,2]
[366338581,1750197041545,-460.0,0.00016438,2]
[366338583,1750197041555,-490.0,0.00016438,2]
[366338585,1750197041564,-490.0,0.00016438,2]
[366338587,1750197041574,-490.0,0.00016438,2]
[366338589,1750197041585,-490.0,0.00016438,2]
[366338591,1750197041594,-490.0,0.00016438,2]
[366338593,1750197041603,-490.0,0.00016438,2]
[366338595,1750197041612,-490.0,0.00016438,2]
[366338597,1750197041622,-490.0,0.00016438,2]
[366338599,1750197041632,-490.0,0.00016438,2]
[366338601,1750197041642,-466.01038271,0.00016438,2]
[366338603,1750197041651,-490.0,0.00016438,2]
[366338605,1750197041661,-490.0,0.00016438,2]
[366338607,1750197041670,-500.82,0.00016438,2]
[366338609,1750197041680,-490.0,0.00016438,2]
[366338611,1750197041691,-490.0,0.00016438,2]
[366338613,1750197041700,-490.0,0.00016438,2]
[366338615,1750197041710,-490.0,0.00016438,2]
[366338617,1750197041719,-490.0,0.00016438,2]
[366338619,1750197041729,-490.0,0.00016438,2]
[366338621,1750197041740,-859.04,0.00016438,2]
[366338623,1750197041750,-490.0,0.00016438,2]
[366338625,1750197041761,-490.0,0.00016438,2]
[366338627,1750197041770,-490.0,0.00016438,2]
[366338629,1750197041780,-590.73,0.00016438,2]
[366338631,1750197041789,-490.0,0.00016438,2]
[366338633,1750197041799,-713.95,0.00016438,2]
[366338635,1750197041808,-490.0,0.00016438,2]
[366338637,1750197041818,-490.0,0.00016438,2]
[366338639,1750197041828,-490.0,0.00016438,2]
[366338641,1750197041837,-490.0,0.00016438,2]
[366338643,1750197041847,-490.0,0.00016438,2]
[366338645,1750197041856,-490.0,0.00016438,2]
[366338647,1750197041866,-612.84,0.00016438,2]
[366338649,1750197041876,-490.0,0.00016438,2]
[366338651,1750197041885,-490.0,0.00016438,2]
[366338653,1750197041894,-490.0,0.00016438,2]
[366338655,1750197041903,-490.0,0.00016438,2]
[366338657,1750197041913,-490.0,0.00016438,2]
[366338659,1750197041922,-490.0,0.00016438,2]
[366338661,1750197041931,-649.56,0.00016438,2]
[366338663,1750197041941,-460.0,0.00016438,2]
[366338665,1750197041951,-575.43738784,0.00016438,2]
[366338667,1750197041961,-490.0,0.00016438,2]
[366338669,1750197041971,-490.0,0.00016438,2]
[366338671,1750197041981,-673.89,0.00016438,2]
[366338673,1750197041990,-570.32,0.00016438,2]
[366338675,1750197042000,-490.0,0.00016438,2]
[366338677,1750197042010,-460.0,0.00016438,2]
[366338679,1750197042020,-490.0,0.00016438,2]
[366338681,1750197042031,-1000.0,0.00016438,2]
[366338683,1750197042041,-1000.0,0.00016438,2]
[366338685,1750197042051,-1000.0,0.00016438,2]
[366338687,1750197042061,-1000.0,0.00016438,2]
[366338689,1750197042070,-1000.0,0.00016438,2]
[366338691,1750197042079,-1000.0,0.00016438,2]
[366338693,1750197042088,-490.0,0.00016438,2]
[366338695,1750197042098,-1000.0,0.00016438,2]
[366338697,1750197042108,-619.02048472,0.00016438,2]
[366338699,1750197042117,-756.31,0.00016438,2]
[366338701,1750197042126,-490.0,0.00016438,2]
[366338703,1750197042136,-490.0,0.00016438,2]
[366338705,1750197042145,-490.0,0.00016438,2]
[366338707,1750197042156,-490.0,0.00016438,2]
[366338709,1750197042165,-490.0,0.00016438,2]
[366338711,1750197042175,-490.0,0.00016438,2]
[366338713,1750197042185,-490.0,0.00016438,2]
[366338715,1750197042194,-490.0,0.00016438,2]
[366338717,1750197042204,-490.0,0.00016438,2]
[366338719,1750197042214,-490.0,0.00016438,2]
[366338721,1750197042223,-490.0,0.00016438,2]
[366338723,1750197042232,-490.0,0.00016438,2]
[366338725,1750197042241,-490.0,0.00016438,2]
[366338727,1750197042252,-876.82,0.00016438,2]
[366338729,1750197042262,-490.0,0.00016438,2]
[366338731,1750197042272,-1447.74,0.00016438,2]
[366338733,1750197042282,-490.0,0.00016438,2]
[366338735,1750197042292,-574.33,0.00016438,2]
[366338737,1750197042302,-490.0,0.00016438,2]
[366338739,1750197042311,-490.0,0.00016438,2]
[366338742,1750197042323,-490.0,0.00016438,2]
[366338744,1750197042335,-1014.73,0.00016438,2]
[366338746,1750197042344,-151.0,0.00016438,2]
[366338748,1750197042354,-151.0,0.00016438,2]
[366338750,1750197042365,-490.0,0.00016438,2]
[366338752,1750197042374,-490.0,0.00016438,2]
[366338754,1750197042383,-1488.04,0.00016438,2]
[366338756,1750197042392,-490.0,0.00016438,2]
[366338758,1750197042402,-490.0,0.00016438,2]
[366338760,1750197042413,-490.0,0.00016438,2]
[366338762,1750197042423,-490.0,0.00016438,2]
[366338764,1750197042432,-877.39,0.00016438,2]
[366338766,1750197042442,-490.0,0.00016438,2]
[366338768,1750197042451,-460.0,0.00016438,2]
[366338770,1750197042461,-490.0,0.00016438,2]
[366338772,1750197042471,-490.0,0.00016438,2]
[366338775,1750197042481,-603.42611066,0.00016438,2]
[366338777,1750197042490,-490.0,0.00016438,2]
[366338779,1750197042499,-490.0,0.00016438,2]
[366338781,1750197042510,-490.0,0.00016438,2]
[366338783,1750197042519,-490.0,0.00016438,2]
[366338785,1750197042529,-490.0,0.00016438,2]
[366338787,1750197042548,-490.0,0.00016438,2]
[366338789,1750197042560,-1393.9,0.00016438,2]
[366338791,1750197042569,-490.0,0.00016438,2]
[366338793,1750197042579,-490.0,0.00016438,2]
[366338795,1750197042588,-722.93,0.00016438,2]
[366338797,1750197042597,-738.87,0.00016438,2]
[366338799,1750197042607,-500.0,0.00016438,2]
[366338801,1750197042616,-500.0,0.00016438,2]
[366338803,1750197042626,-500.0,0.00016438,2]
[366338805,1750197042635,-500.0,0.00016438,2]
[366338807,1750197042645,-500.0,0.00016438,2]
[366338808,1750197042655,-500.0,0.00016438,2]
[366338809,1750197042664,-639.17,0.00016438,2]
[366338810,1750197042673,-490.0,0.00016438,2]
[366338811,1750197042683,-490.0,0.00016438,2]
[366338812,1750197042692,-1076.4,0.00016438,2]
[366338813,1750197042702,-1573.66,0.00016438,2]
[366338814,1750197042713,-490.0,0.00016438,2]
[366338815,1750197042723,-490.0,0.00016438,2]
[366338816,1750197042733,-553.54,0.00016438,2]
[366338817,1750197042742,-858.21,0.00016438,2]
[366338818,1750197042751,-490.0,0.00016438,2]
[366338819,1750197042762,-490.0,0.00016438,2]
[366338821,1750197042771,-490.0,0.00016438,2]
[366338823,1750197042781,-1051.96,0.00016438,2]
[366338826,1750197042791,-490.0,0.00016438,2]
[366338827,1750197042800,-490.0,0.00016438,2]
[366338829,1750197042810,-490.0,0.00016438,2]
[366338831,1750197042819,-1077.12,0.00016438,2]
[366338833,1750197042830,-348.247851,0.00016438,2]
[366338835,1750197042840,-348.247851,0.00016438,2]
[366338838,1750197042850,-635.47,0.00016438,2]
[366338840,1750197042859,-490.0,0.00016438,2]
[366338842,1750197042869,-460.0,0.00016438,2]
[366338843,1750197042879,-339.76124248,0.00016438,2]
[366338845,1750197042888,-490.0,0.00016438,2]
[366338847,1750197042897,-348.247851,0.00016438,2]
[366338849,1750197042907,-348.247851,0.00016438,2]
[366338851,1750197042917,-1436.99,0.00016438,2]
[366338854,1750197042926,-490.0,0.00016438,2]
[366338856,1750197042936,-490.0,0.00016438,2]
[366338858,1750197042946,-490.0,0.00016438,2]
[366338860,1750197042955,-490.0,0.00016438,2]
[366338862,1750197042965,-174.022282,0.00016438,2]
[366338864,1750197042976,-490.0,0.00016438,2]
[366338866,1750197042985,-490.0,0.00016438,2]
[366338869,1750197042995,-1228.41,0.00016438,2]
[366338871,1750197043004,-174.022282,0.00016438,2]
[366338873,1750197043014,-174.022282,0.00016438,2]
[366338875,1750197043024,-174.022282,0.00016438,2]
[366338876,1750197043033,-490.0,0.00016438,2]
[366338878,1750197043043,-490.0,0.00016438,2]
[366338882,1750197043053,-606.31235226,0.00016438,2]
[366338884,1750197043063,-490.0,0.00016438,2]
[366338886,1750197043073,-490.0,0.00016438,2]
[366338888,1750197043082,-490.0,0.00016438,2]
[366338890,1750197043093,-398.91568255,0.00016438,2]
[366338892,1750197043103,-614.68,0.00016438,2]
[366338894,1750197043113,-1552.89,0.00016438,2]
[366338896,1750197043123,-460.0,0.00016438,2]
[366338898,1750197043132,-623.78,0.00016438,2]
[366338900,1750197043141,-151.0,0.00016438,2]
[366338902,1750197043151,-490.0,0.00016438,2]
[366338904,1750197043161,-151.0,0.00016438,2]